[Event "WSTCC-50 2024"]
[Site "Krakow"]
[Date "2024.07.02"]
[Round "1.15"]
[White "Czyz, Andrzej"]
[Black "Ortega, Lexy"]
[Result "1/2-1/2"]
[ECO "D10"]
[WhiteElo "1921"]
[BlackElo "2386"]
[Annotator "TA"]
[PlyCount "103"]
[EventDate "2024.07.01"]
[EventType "team-tourn"]
[EventCountry "POL"]
[SourceTitle "playchess.com"]
[Source "ChessBase"]
[SourceQuality "1"]
[TimeControl "40/5400+30:1800+30"]

{[%evp 12,103,-37,-43,-48,-51,2,-63,-58,-49,30,33,26,32,345,85,82,85,86,64,73,40,37,41,35,0,0,0,11,11,13,-27,7,-27,0,-14,-14,-14,-34,-25,-25,-43,-29,-108,-100,-100,9,6,8,8,9,12,11,0,22,8,26,5,28,27,46,47,47,47,64,8,8,8,17,19,22,8,8,8,13,13,38,43,66,10,14,12,14,14,66,66,584,0,0,0,429,0,0,0]} 1. d4 {[%emt 0:00:25]} d5 {[%emt 0:00:05]} 2. c4 {[%emt 0:00:35]} c6 {[%emt 0:00:02]} 3. Nc3 {[%emt 0:00:16]} dxc4 {[%emt 0:00:03]} 4. a4 {[%emt 0:00:19]} e5 {[%emt 0:00:06]} 5. e3 {[%emt 0:01:08]} exd4 {[%emt 0:01:22]} 6. exd4 {[%emt 0:03:13]} Be6 {[%emt 0:00:03]} 7. Nf3 {[%emt 0:00:57]} Nf6 {[%emt 0:02:03]} 8. Ne5 {[%emt 0:01:33]} c5 {[%emt 0:19:52]} (8... Nbd7 $15 9. Bxc4 Nxe5 10. Bxe6 fxe6 11. dxe5 Qxd1+ 12. Nxd1 Nd5) 9. Be3 {[%emt 0:14:36]} ({White should play} 9. d5 $1 $11 Nxd5 10. Bxc4) 9... cxd4 {[%emt 0:08:09] Black is slightly better.} 10. Bxd4 {[%emt 0:02:09]} Nfd7 {[%emt 0:23:44]} ({Better is} 10... Qc7 $15) 11. Bxc4 $11 {[%emt 0:06:46][%cal Oe5f7] aiming for Nxf7!} (11. Nxc4 Nc6 $15) 11... Nxe5 {[%emt 0:00:59]} 12. Bxe6 {[%emt 0:01:18]} Nec6 $2 {[%emt 0:08:49][%mdl 8192] [#]} (12... fxe6 $14 13. Bxe5 Qxd1+ 14. Rxd1 Nc6) 13. Bd5 $2 {[%emt 0:08:58]} (13. Qh5 $1 $18 {[%csl Ge6][%cal Rh5f7] and the rest is easy.} g6 (13... Qxd4 $2 {is the wrong capture.} 14. Qxf7+ Kd8 15. Rd1 $18) (13... Qe7 $2 14. O-O-O $18) 14. Qf3) 13... Nxd4 $16 {[%emt 0:10:04]} 14. Qxd4 {[%emt 0:00:41][%cal Od5f7] Bxf7+! would now be deadly.} Nc6 {[%emt 0:00:02] Black is weak on the light squares} 15. Qe4+ {[%emt 0:02:20]} Qe7 {[%emt 0:01:01]} 16. O-O {[%emt 0:01:00] White is much more active.} Qxe4 {[%emt 0:00:04]} 17. Bxe4 {[%emt 0:00:14]} O-O-O {[%emt 0:05:33]} 18. Bxc6 {[%emt 0:08:20]} bxc6 {[%emt 0:00:06]} 19. Rfc1 {[%emt 0:01:29]} a5 {[%emt 0:03:43]} 20. Ne4 {[%emt 0:02:11]} Kb7 {[%emt 0:01:13]} 21. Rc2 {[%emt 0:01:25]} Rd4 {[%emt 0:05:13]} 22. f3 {[%emt 0:01:35]} Be7 {[%emt 0:03:30]} 23. Rac1 {[%emt 0:03:04]} Rc8 {[%emt 0:00:08]} 24. Rc4 {[%emt 0:01:29]} Rxc4 {[%emt 0:00:53]} 25. Rxc4 $11 {[%emt 0:00:02][%mdl 4096] Endgame. KRB-KRN} Rd8 {[%emt 0:00:50]} 26. g4 {[%emt 0:09:38]} Rd3 {[%emt 0:00:49]} 27. Kf2 {[%emt 0:01:51]} (27. Rc3 $11 {keeps the balance.} Rd4 28. b3) 27... Rb3 $17 {[%emt 0:00:57]} 28. Rc2 {[%emt 0:00:21]} g6 {[%emt 0:01:05]} (28... Rb4 $17 29. Nc5+ Bxc5+ 30. Rxc5 Kb6 (30... Rxb2+ 31. Ke3 $17)) 29. Nd2 $1 $11 {[%emt 0:00:53]} Rb4 {[%emt 0:00:35]} 30. b3 {[%emt 0:00:11]} Kc7 {[%emt 0:01:33]} 31. Rc3 {[%emt 0:02:11]} Rd4 {[%emt 0:01:24]} 32. Nc4 {[%emt 0:03:09]} Rd5 {[%emt 0:00:12]} 33. Ke2 {[%emt 0:00:55]} f5 34. h3 {[%emt 0:00:19]} fxg4 {[%emt 0:01:07]} 35. fxg4 {[%emt 0:00:41]} h5 {[%emt 0:00:32]} 36. Rd3 {[%emt 0:01:03]} hxg4 {[%emt 0:00:15]} 37. hxg4 {[%emt 0:00:04]} Bb4 {[%emt 0:00:55]} 38. Rf3 {[%emt 0:02:23]} ({White should try} 38. Ke3 $14) 38... Rd4 {[%emt 0:01:00]} 39. Rf7+ {[%emt 0:04:51]} Kd8 {[%emt 0:00:15]} 40. Kf3 {[%emt 0:03:20]} Rd3+ {[%emt 0:00:16]} 41. Kf4 {[%emt 0:30:11]} Rxb3 {[%emt 0:30:10]} 42. Kg5 {[%emt 0:00:18]} Rc3 {[%emt 0:00:52]} 43. Rf4 {[%emt 0:02:00]} Rc2 44. Kxg6 {[%emt 0:00:00]} Ra2 {[%emt 0:00:00]} 45. Kf7 {[%emt 0:00:00]} (45. g5 $14) 45... Rxa4 {[%emt 0:00:00]} 46. g5 {[%emt 0:00:00][%cal Bg4g5,Bg5g6][%mdl 32]} (46. Nxa5 {simplifies} Rxa5 47. Rxb4 Kd7 48. Rd4+) 46... Bc3 {[%emt 0:00:00] Prevents Ne5.} 47. g6 {[%emt 0:00:00][%mdl 1024] White has compensation.} Rb4 {[%emt 0:00:00]} (47... Ra1 $11) 48. Ke6 $1 $14 {[%emt 0:00:00] [#] Rf8+ is the strong threat.} a4 $2 {[%emt 0:00:00][%mdl 8192]} (48... Rb5 $14) 49. Kd6 $2 {[%emt 0:00:00]} ({White has to play} 49. Rf8+ $18 Kc7 50. Rf7+ Kc8 51. Ne5) 49... Ke8 $11 {[%emt 0:00:00]} 50. Ke6 $2 {[%emt 0:00:00][%mdl 8192]} (50. Kxc6 $11 Ke7 51. Kc5) 50... Kd8 $1 $18 {[%emt 0:00:42]} 51. Kd6 $2 {[%emt 0:00:00]} (51. Rf8+ $18 Kc7 52. Rf7+ Kc8 53. Ne5) 51... Ke8 $11 {[%emt 0:00:24]} 52. Ke6 {[%emt 0:00:00] Weighted Error Value: White=0.47/Black=0.41.  Loses game:     	---       	Black=2      Missed win:     	White=3     	---        Mistake:       	White=5     	Black=4      Inaccurate:     	White=4     	Black=2      OK:         	White=13    	Black=12     Best:        	White=2     	Black=6      Strong:       	White=2     	Black=1} 1/2-1/2

[Event "WSTCC-50 2024"]
[Site "Krakow"]
[Date "2024.07.02"]
[Round "1.15"]
[White "Kohnen, Marc"]
[Black "Moritz, Hartmut"]
[Result "1/2-1/2"]
[ECO "C02"]
[WhiteElo "1837"]
[BlackElo "2002"]
[Annotator "NA RC"]
[PlyCount "69"]
[EventDate "2024.07.01"]
[EventType "team-tourn"]
[EventCountry "POL"]
[SourceTitle "playchess.com"]
[Source "ChessBase"]
[SourceQuality "1"]
[TimeControl "40/5400+30:1800+30"]

1. e4 {[%emt 0:00:07]} e6 {[%emt 0:00:24]} 2. d4 {[%emt 0:00:27]} d5 {[%emt 0:00:07]} 3. e5 {[%emt 0:00:24]} c5 {[%emt 0:00:14]} 4. Nf3 {[%emt 0:00:56]} cxd4 {[%emt 0:01:10]} 5. Nxd4 {[%emt 0:00:28]} Nc6 {[%emt 0:00:27]} 6. f4 {[%emt 0:01:45]} Nxd4 {[%emt 0:02:09]} 7. Qxd4 {[%emt 0:00:13]} Ne7 {[%emt 0:01:08]} 8. Nc3 {[%emt 0:07:52]} Nf5 {[%emt 0:05:02]} 9. Bb5+ {[%emt 0:03:02]} Bd7 {[%emt 0:00:06]} 10. Qa4 {[%emt 0:00:46]} Bc5 {[%emt 0:11:36]} 11. Ne2 {[%emt 0:12:36]} a6 {[%emt 0:09:27]} 12. Bxd7+ {[%emt 0:01:20]} Qxd7 {[%emt 0:00:03]} 13. Qxd7+ {[%emt 0:00:59]} Kxd7 {[%emt 0:00:03]} 14. Bd2 {[%emt 0:02:41]} h5 {[%emt 0:05:11]} 15. O-O-O {[%emt 0:05:48]} b5 {[%emt 0:04:54]} 16. h4 {[%emt 0:15:11]} Rhc8 {[%emt 0:02:49]} 17. Rh3 {[%emt 0:01:13]} g6 {[%emt 0:00:51]} 18. Bc3 {[%emt 0:01:58]} Ne3 {[%emt 0:12:10]} 19. Rd3 {[%emt 0:06:44]} Ng4 {[%emt 0:00:26]} 20. Rhf3 {[%emt 0:01:37]} Nf2 {[%emt 0:01:52]} 21. Rd2 {[%emt 0:01:20]} Ne4 {[%emt 0:01:30]} 22. Rdd3 {[%emt 0:00:22]} Be7 {[%emt 0:09:38]} 23. g3 {[%emt 0:02:30]} a5 {[%emt 0:02:55]} 24. Bd4 {[%emt 0:05:35]} b4 {[%emt 0:01:46]} 25. Kb1 {[%emt 0:01:59]} a4 {[%emt 0:01:20]} 26. Rfe3 {[%emt 0:03:29]} Rc6 {[%emt 0:06:26]} 27. c3 {[%emt 0:03:35]} Rac8 {[%emt 0:03:15]} 28. cxb4 {[%emt 0:03:11]} Bxb4 {[%emt 0:00:42]} 29. Bc3 {[%emt 0:00:21]} Nxc3+ {[%emt 0:01:25]} 30. Nxc3 {[%emt 0:00:09]} Bxc3 {[%emt 0:00:14]} 31. Rxc3 {[%emt 0:00:06]} Rxc3 {[%emt 0:00:15]} 32. Rxc3 {[%emt 0:00:07]} Rxc3 {[%emt 0:01:34]} 33. bxc3 {[%emt 0:00:10]} Kc6 {[%emt 0:00:20]} 34. Kc2 {[%emt 0:00:39]} Kc5 {[%emt 0:00:50]} 35. Kd3 {[%emt 0:00:29]} 1/2-1/2

[Event "WSTCC-50 2024"]
[Site "Krakow"]
[Date "2024.07.02"]
[Round "1.16"]
[White "D'Amore, Carlo"]
[Black "Wielosz, Jaroslaw"]
[Result "1-0"]
[ECO "A05"]
[WhiteElo "2357"]
[BlackElo "1920"]
[Annotator "TA"]
[PlyCount "95"]
[EventDate "2024.07.01"]
[EventType "team-tourn"]
[EventCountry "POL"]
[SourceTitle "playchess.com"]
[Source "ChessBase"]
[SourceQuality "1"]
[TimeControl "40/5400+30:1800+30"]

{[%evp 11,95,-6,-4,10,11,15,18,-22,28,10,30,0,0,0,0,0,0,20,6,0,0,0,11,8,47,0,35,38,53,21,35,0,85,76,90,78,91,81,78,87,80,83,133,51,50,61,51,48,124,125,138,135,160,151,149,140,116,129,134,116,659,642,630,591,1178,1131,1619,1508,1413,1040,1837,1667,1527,1522,1344,1534,1585,1465,1200,1247,6187,6179,5613,5554,5302,5229]} 1. Nf3 {[%emt 0:00:07]} Nf6 {[%emt 0:00:13]} 2. g3 {[%emt 0:00:28]} g6 {[%emt 0:00:20]} 3. Bg2 {[%emt 0:02:11]} Bg7 {[%emt 0:00:09]} 4. O-O {[%emt 0:00:47]} O-O {[%emt 0:00:49]} 5. d4 {[%emt 0:00:14]} d5 {[%emt 0:00:19]} 6. Be3 {[%emt 0:02:19]} c6 {[%emt 0:07:56]} 7. Qc1 {[%emt 0:01:12]} a5 {[%emt 0:05:59]} 8. c4 {[%emt 0:03:25]} Bf5 {[%emt 0:06:54]} 9. h3 {[%emt 0:14:08] The position is equal.} Na6 {[%emt 0:07:26]} (9... dxc4 $142 10. Bh6 Qd7) 10. g4 {[%emt 0:07:41]} Bc8 {[%emt 0:04:20]} 11. Bh6 {[%emt 0:01:34]} dxc4 {[%emt 0:03:40]} 12. Bxg7 {[%emt 0:05:38]} Kxg7 {[%emt 0:00:15]} 13. Qxc4 {[%emt 0:00:29]} h5 {[%emt 0:05:42]} 14. g5 {[%emt 0:04:52]} Ne4 {[%emt 0:02:46]} 15. Nc3 {[%emt 0:12:10]} Nd6 {[%emt 0:04:48]} 16. Qd3 {[%emt 0:02:01]} Nb4 {[%emt 0:03:39]} 17. Qd2 {[%emt 0:01:00]} Bf5 {[%emt 0:10:30]} 18. d5 {[%emt 0:11:38]} (18. Nh4 $14) 18... Qc8 {[%emt 0:10:53]} 19. a3 {[%emt 0:19:57]} Na6 {[%emt 0:10:56]} 20. dxc6 {[%emt 0:00:29]} bxc6 {[%emt 0:02:02]} 21. Qd4+ {[%emt 0:03:15]} Kg8 {[%emt 0:00:28]} (21... Kh7 $1 $11 {remains equal.}) 22. Ne5 $16 {[%emt 0:00:23]} Bxh3 {[%emt 0:02:42]} 23. Nxc6 {[%emt 0:00:21] White has more active pieces.} Nf5 {[%emt 0:00:35]} 24. Bxh3 {[%emt 0:00:19]} Qxc6 {[%emt 0:03:31]} 25. Bxf5 {[%emt 0:00:03]} gxf5 {[%emt 0:00:56]} 26. Nd5 $36 {[%emt 0:00:05][%cal Bc3d5,Bd5f4,Bf4d3][%mdl 2080] Keeping Black busy.} Rfe8 {[%emt 0:00:52]} (26... Qe6 $142) 27. Qe5 {[%emt 0:01:32]} (27. Rac1 $16 Qe6 28. Nf4) 27... Qe6 $14 {[%emt 0:01:05]} 28. Qxe6 {[%emt 0:01:23]} fxe6 {[%emt 0:00:09]} 29. Nf4 {[%emt 0:00:02][%csl LRe6,LRh5][%cal Of4d3]} Kf7 {[%emt 0:01:06]} ({Black should try} 29... Nc5 $14) 30. Nd3 {[%emt 0:00:01]} (30. Nxh5 Kg6 31. Ng3 (31. Nf4+ Kxg5 32. Nd3 Kf6 $14) 31... Kxg5 $15) 30... Rec8 {[%emt 0:01:30]} 31. Rac1 {[%emt 0:00:06] Repels Nc5} Rab8 {[%emt 0:00:25]} 32. f4 {[%emt 0:00:06]} Nc7 {[%emt 0:00:59]} 33. Rc6 {[%emt 0:00:33]} Nd5 {[%emt 0:00:19]} 34. Rfc1 {[%emt 0:00:31]} Rxc6 {[%emt 0:00:15]} 35. Rxc6 {[%emt 0:00:04]} Rb6 $2 {[%emt 0:01:06][%mdl 8192] [#] Black cannot hold the game after this.} (35... Rd8 $16 36. Kf2 h4) 36. Rxb6 {[%emt 0:01:24] White is clearly winning.} Nxb6 $18 {[%emt 0:00:07][%mdl 4096] Endgame. KN-KN} 37. b4 {[%emt 0:01:36][%cal Bb2b4,Bb4b5][%mdl 32]} a4 {[%emt 0:00:39]} 38. Ne5+ {[%emt 0:00:06]} Kg7 {[%emt 0:00:18]} 39. b5 {[%emt 0:01:06]} Nd5 {[%emt 0:01:10] [#]} 40. e3 $1 {[%emt 0:00:30][%mdl 512] Hoping for Nc4.} Nb6 {[%emt 0:01:12]} (40... Kf8 41. Nc4) 41. Kg2 {[%emt 0:30:21]} Kh7 {[%emt 0:03:02]} 42. Kh3 {[%emt 0:00:00]} Kg7 {[%emt 0:00:30]} 43. Kh4 {[%emt 0:00:00]} Kh7 {[%emt 0:00:18]} 44. Kxh5 {[%emt 0:00:00]} Kg7 {[%emt 0:00:13]} 45. Kh4 {[%emt 0:00:00]} Kh7 {[%emt 0:00:47]} 46. Kg3 {[%emt 0:00:00]} Kg7 {[%emt 0:00:35]} 47. Kf2 {[%emt 0:00:00]} Nd5 {[%emt 0:00:52]} 48. Nd7 {[%emt 0:00:00] Weighted Error Value: White=0.12 (very precise) /Black=0.42.  Loses game:     	---       	Black=1      Mistake:       	White=2     	Black=4      Inaccurate:     	White=3     	Black=3      OK:         	White=14    	Black=11     Best:        	White=2     	Black=1} 1-0

[Event "WSTCC-50 2024"]
[Site "Krakow"]
[Date "2024.07.02"]
[Round "1.16"]
[White "Scheckenbach, Franz"]
[Black "Thomas, Gary"]
[Result "1/2-1/2"]
[ECO "A08"]
[WhiteElo "2072"]
[BlackElo "1865"]
[Annotator "NA RC"]
[PlyCount "62"]
[EventDate "2024.07.01"]
[EventType "team-tourn"]
[EventCountry "POL"]
[SourceTitle "playchess.com"]
[Source "ChessBase"]
[SourceQuality "1"]
[TimeControl "40/5400+30:1800+30"]

1. Nf3 d5 2. g3 {[%emt 0:01:26]} c5 {[%emt 0:01:11]} 3. Bg2 {[%emt 0:00:27]} Nc6 {[%emt 0:00:08]} 4. O-O {[%emt 0:01:15]} Nf6 {[%emt 0:00:25]} 5. d3 {[%emt 0:00:10]} e5 {[%emt 0:00:50]} 6. Nbd2 {[%emt 0:05:03]} Be7 {[%emt 0:01:36]} 7. e4 {[%emt 0:00:17]} O-O {[%emt 0:03:15]} 8. c3 {[%emt 0:02:48]} dxe4 {[%emt 0:13:51]} 9. dxe4 {[%emt 0:01:06]} Qd3 {[%emt 0:04:59]} 10. Re1 {[%emt 0:06:19]} Rd8 {[%emt 0:05:04]} 11. Bf1 {[%emt 0:04:07]} Qd6 {[%emt 0:01:25]} 12. Qc2 {[%emt 0:02:08]} Bg4 {[%emt 0:06:19]} 13. Nc4 {[%emt 0:05:31]} Qc7 {[%emt 0:02:59]} 14. Bg2 {[%emt 0:01:48]} Rd7 {[%emt 0:07:43]} 15. Bg5 {[%emt 0:13:33]} Rad8 {[%emt 0:03:39]} 16. Bxf6 {[%emt 0:07:58]} Bxf6 {[%emt 0:00:23]} 17. Ne3 {[%emt 0:00:35]} Be6 {[%emt 0:04:30]} 18. Bf1 {[%emt 0:05:22]} a6 {[%emt 0:05:26]} 19. Bc4 {[%emt 0:07:49]} Bxc4 {[%emt 0:00:19]} 20. Nxc4 {[%emt 0:00:04]} g6 {[%emt 0:03:03]} 21. Rad1 {[%emt 0:00:38]} b5 {[%emt 0:02:29]} 22. Ne3 {[%emt 0:00:16]} Ne7 {[%emt 0:00:56]} 23. Rxd7 {[%emt 0:00:18]} Rxd7 {[%emt 0:00:21]} 24. Rd1 {[%emt 0:00:26]} h5 {[%emt 0:04:19]} 25. h3 {[%emt 0:02:01]} Bg7 {[%emt 0:05:16]} 26. g4 {[%emt 0:04:58]} Qd8 {[%emt 0:02:00]} 27. Kg2 {[%emt 0:05:38]} hxg4 {[%emt 0:03:21]} 28. hxg4 {[%emt 0:00:17]} f6 {[%emt 0:01:18]} 29. Rxd7 {[%emt 0:08:30]} Qxd7 {[%emt 0:00:14]} 30. Qd1 {[%emt 0:02:27]} Qxd1 {[%emt 0:02:44]} 31. Nxd1 {[%emt 0:00:04]} f5 {[%emt 0:00:36]} 1/2-1/2

[Event "WSTCC-50 2024"]
[Site "Krakow"]
[Date "2024.07.02"]
[Round "1.16"]
[White "Van Bentum, Horst"]
[Black "Kayser, Pierrot"]
[Result "1-0"]
[ECO "C66"]
[WhiteElo "1951"]
[BlackElo "1764"]
[Annotator "NA RC"]
[PlyCount "61"]
[EventDate "2024.07.01"]
[EventType "team-tourn"]
[EventCountry "POL"]
[SourceTitle "playchess.com"]
[Source "ChessBase"]
[SourceQuality "1"]
[TimeControl "40/5400+30:1800+30"]

1. e4 {[%emt 0:00:06]} e5 {[%emt 0:00:09]} 2. Nf3 {[%emt 0:00:12]} Nc6 {[%emt 0:00:22]} 3. Bb5 {[%emt 0:00:16]} Nf6 {[%emt 0:01:06]} 4. O-O {[%emt 0:00:23]} d6 {[%emt 0:03:31]} 5. Re1 {[%emt 0:02:23]} a6 {[%emt 0:02:04]} 6. Bxc6+ {[%emt 0:01:18]} bxc6 {[%emt 0:00:12]} 7. d4 {[%emt 0:00:43]} exd4 {[%emt 0:01:20]} 8. Nxd4 {[%emt 0:00:47]} c5 {[%emt 0:00:53]} 9. Nf3 {[%emt 0:06:13]} Be7 {[%emt 0:02:19]} 10. h3 {[%emt 0:07:29]} O-O {[%emt 0:04:45]} 11. Nc3 {[%emt 0:00:11]} Bb7 {[%emt 0:06:47]} 12. Bf4 {[%emt 0:02:24]} Re8 {[%emt 0:05:33]} 13. Qd3 {[%emt 0:04:11]} Rc8 {[%emt 0:06:25]} 14. Rad1 {[%emt 0:01:16]} Bc6 {[%emt 0:13:42]} 15. Qxa6 {[%emt 0:03:14]} Bd7 {[%emt 0:07:10]} 16. Qd3 {[%emt 0:05:31]} Be6 {[%emt 0:02:06]} 17. Nd5 {[%emt 0:02:23]} Bxd5 {[%emt 0:09:35]} 18. exd5 {[%emt 0:00:20]} Qd7 {[%emt 0:01:02]} 19. b3 {[%emt 0:05:44]} Bf8 {[%emt 0:04:34]} 20. Bg5 {[%emt 0:05:23]} Be7 {[%emt 0:03:25]} 21. Re2 {[%emt 0:04:39]} h6 {[%emt 0:00:28]} 22. Bxf6 {[%emt 0:00:55]} Bxf6 {[%emt 0:00:13]} 23. Rxe8+ {[%emt 0:04:00]} Rxe8 {[%emt 0:00:12]} 24. Re1 {[%emt 0:00:50]} Rxe1+ {[%emt 0:11:49]} 25. Nxe1 {[%emt 0:00:20]} Qe8 {[%emt 0:01:01]} 26. Nf3 {[%emt 0:02:47]} Be5 {[%emt 0:03:08]} 27. a4 {[%emt 0:01:30]} Qb8 {[%emt 0:00:43]} 28. Nxe5 {[%emt 0:02:48]} dxe5 {[%emt 0:00:17]} 29. Qb5 {[%emt 0:00:51]} Qb6 {[%emt 0:01:45]} 30. Qe8+ {[%emt 0:06:01]} Kh7 {[%emt 0:00:09]} 31. Qxe5 {[%emt 0:00:16]} 1-0

[Event "WSTCC-50 2024"]
[Site "Krakow"]
[Date "2024.07.02"]
[Round "1.17"]
[White "Kaspi, Alexander"]
[Black "Osiecki, Stanislaw"]
[Result "1-0"]
[ECO "A53"]
[WhiteElo "2365"]
[BlackElo "1986"]
[Annotator "TA"]
[PlyCount "145"]
[EventDate "2024.07.01"]
[EventType "team-tourn"]
[EventCountry "POL"]
[SourceTitle "playchess.com"]
[Source "ChessBase"]
[SourceQuality "1"]
[TimeControl "40/5400+30:1800+30"]

{[%evp 34,145,139,140,144,95,117,114,141,141,157,159,159,150,168,150,180,160,219,213,206,154,166,165,172,162,195,187,189,184,222,213,227,226,297,300,294,294,358,363,468,457,420,378,370,382,396,395,559,556,801,806,865,560,586,565,528,489,483,452,475,468,501,393,383,372,616,610,616,400,400,400,604,645,722,731,715,615,1202,1045,965,925,1191,1181,2362,2379,1394,2914,1668,0,4316,3633,3022,2381,5189,5049,29948,2266,5081,1498,5583,6099,29976,29977,6099,5704,29982,77,29983,29984,29984,29985,29985,29986]} 1. d4 {[%emt 0:00:04]} Nf6 {[%emt 0:00:10]} 2. c4 {[%emt 0:00:08]} d6 {[%emt 0:00:06]} 3. Nc3 {[%emt 0:00:06]} Nbd7 {[%emt 0:00:15]} 4. e4 {[%emt 0:00:17]} c6 {[%emt 0:00:11]} 5. Be3 {[%emt 0:00:54]} e5 {[%emt 0:00:09]} 6. d5 {[%emt 0:01:32]} cxd5 {[%emt 0:00:11] A53: Old Indian Defence without Nf3.} 7. cxd5 {[%emt 0:00:07]} Nc5 $146 {[%emt 0:01:18]} ({Predecessor:} 7... g6 8. f3 a6 9. Nge2 Bg7 10. Qd2 O-O 11. g4 b5 12. Ng3 Nc5 13. b4 Na4 14. Nxa4 bxa4 15. Bd3 Ne8 16. Rc1 Bd7 17. O-O Qb8 18. Rc2 Nc7 19. Rfc1 Nb5 20. Kg2 Qb7 21. Bxb5 Qxb5 {1-0 Dolezal,R (2421)-Karlik,V (2321) Cesky Krumlov op 1st 2007 (9)}) 8. f3 {[%emt 0:00:09]} a5 {[%emt 0:00:23]} 9. Bb5+ {[%emt 0:02:56]} Bd7 {[%emt 0:00:40]} 10. Nge2 {[%emt 0:06:57]} Bxb5 {[%emt 0:03:40]} 11. Nxb5 {[%emt 0:00:20]} Qb6 {[%emt 0:00:03]} 12. a4 {[%emt 0:01:55]} Be7 {[%emt 0:00:31]} 13. O-O {[%emt 0:05:30]} O-O {[%emt 0:00:12]} 14. Kh1 {[%emt 0:01:02]} Rfc8 {[%emt 0:06:55]} 15. Rc1 {[%emt 0:03:08]} Ne8 {[%emt 0:05:56]} 16. Rc3 {[%emt 0:15:57]} Qd8 {[%emt 0:03:14]} 17. Bxc5 {[%emt 0:03:54]} Rxc5 {[%emt 0:01:40]} 18. Rxc5 {[%emt 0:00:06]} dxc5 {[%emt 0:00:02]} 19. Qd3 {[%emt 0:02:02]} (19. Nec3 $142) 19... Nd6 {[%emt 0:01:17]} 20. Nxd6 {[%emt 0:01:58]} Bxd6 {[%emt 0:01:23]} 21. Nc3 {[%emt 0:00:07]} Rc8 {[%emt 0:03:54]} 22. Qc4 {[%emt 0:00:45]} Qd7 {[%emt 0:01:18]} 23. Nb5 {[%emt 0:00:25]} h6 {[%emt 0:03:36]} 24. g3 {[%emt 0:00:26]} Kh8 {[%emt 0:06:53]} 25. Kg2 {[%emt 0:01:20]} Qe7 {[%emt 0:02:23]} (25... f6 $16 26. Na3 Be7) 26. Rf2 {[%emt 0:01:06]} Qd7 {[%emt 0:01:50]} 27. Kf1 {[%emt 0:02:17]} Qh3+ {[%emt 0:03:47]} 28. Ke2 {[%emt 0:00:44]} Qd7 {[%emt 0:01:25]} 29. Kd1 {[%emt 0:00:07]} Qe7 {[%emt 0:04:00]} 30. Kc2 {[%emt 0:00:16]} Qd7 {[%emt 0:00:08]} 31. Kb1 {[%emt 0:00:07]} Qe7 {[%emt 0:00:16]} 32. Ka2 {[%emt 0:00:05]} Qd7 {[%emt 0:00:13]} 33. Rc2 {[%emt 0:01:26]} Qe7 {[%emt 0:01:28]} 34. Na3 {[%emt 0:00:42]} Kg8 {[%emt 0:07:57]} 35. Qb5 {[%emt 0:00:24]} Qc7 {[%emt 0:01:59]} 36. Nc4 {[%emt 0:00:12]} Ra8 {[%emt 0:01:14]} 37. Nxd6 {[%emt 0:00:28]} Qxd6 {[%emt 0:00:02]} 38. Qxc5 {[%emt 0:00:19]} Qd7 {[%emt 0:02:14]} 39. Ka3 {[%emt 0:02:00]} Qd8 {[%emt 0:03:00]} 40. d6 {[%emt 0:05:30]} Ra6 {[%emt 0:02:12]} (40... Qf6 $142 41. Rc3 Rd8) 41. Rd2 $18 {[%emt 0:30:07]} (41. Qxe5 Rxd6 42. Rc5 Rd3+ 43. Rc3 b6 $11) 41... f6 {[%emt 0:33:36]} 42. d7 {[%emt 0:04:14]} Rc6 {[%emt 0:01:10]} 43. Qxa5 {[%emt 0:00:38]} Qxa5 {[%emt 0:02:26]} 44. d8=Q+ {[%emt 0:00:25]} (44. d8=B Qxd2 45. h3 Qxd8 46. f4 Qd3+ 47. Ka2 Rc2 (47... Qxg3 48. fxe5 Rc2 49. exf6 Qe5 50. f7+ Kf8 51. h4 Qxb2#) (47... Qc4+ 48. Ka3 Rb6 49. b4 Qxb4+ 50. Ka2 Qxa4#) 48. g4 Qc3 49. fxe5 Qxb2#) 44... Qxd8 {[%emt 0:00:04]} 45. Rxd8+ {[%emt 0:00:06]} Kh7 {[%emt 0:00:02]} 46. Rd7 {[%emt 0:00:13]} b6 {[%emt 0:01:24]} 47. h4 {[%emt 0:10:55]} h5 {[%emt 0:00:39]} 48. Rd3 {[%emt 0:07:31]} g5 {[%emt 0:00:47]} 49. b4 {[%emt 0:00:22]} Rc1 $2 {[%emt 0:03:37]} (49... g4 50. fxg4 Kh6) 50. a5 $18 {[%emt 0:01:26]} b5 {[%emt 0:04:43]} 51. Kb2 {[%emt 0:00:21]} Rc4 {[%emt 0:01:49]} 52. a6 {[%emt 0:01:44]} Rc7 {[%emt 0:06:09]} (52... Kg6 $142 53. a7 (53. Kb3 Rc6 $18) 53... Rc8) 53. Rd6 $18 {[%emt 0:04:29]} Kg6 {[%emt 0:00:34]} 54. Rb6 {[%emt 0:00:05]} Ra7 {[%emt 0:00:09]} 55. Kc3 {[%emt 0:00:10]} Rc7+ {[%emt 0:01:16]} 56. Kd3 {[%emt 0:00:30]} Ra7 {[%emt 0:00:44]} 57. Ke3 {[%emt 0:00:06]} Ra8 {[%emt 0:00:42]} 58. f4 {[%emt 0:01:17]} gxf4+ 59. gxf4 {[%emt 0:00:09]} Kf7 {[%emt 0:07:04]} 60. Rb7+ {[%emt 0:00:31]} (60. Rxb5 exf4+ 61. Kxf4 Rxa6 62. Rxh5 Ra1) 60... Kg6 {[%emt 0:00:50]} 61. Rb6 $2 {[%emt 0:01:56]} (61. Rxb5 exf4+ 62. Kxf4 Rxa6 $16) ({White has to play} 61. a7 $18 Kh6 62. fxe5 (62. Rxb5 exf4+ 63. Kd4 Rxa7 $18) 62... fxe5 63. Rb6+ (63. Rxb5 Rxa7 64. Rxe5 Ra4 $18) 63... Kg7 64. Rxb5 Rxa7 65. Rxe5) 61... Kg7 $2 {[%emt 0:01:19][%mdl 8192]} (61... Kf7 $11 62. Ke2 (62. Rxb5 exf4+ 63. Kxf4 Rxa6 $18) 62... Kg7) 62. fxe5 $18 {[%emt 0:00:26]} (62. Rxb5 exf4+ 63. Kxf4 Rxa6 64. Rxh5 Ra1 $18) 62... fxe5 {[%emt 0:00:01]} 63. Rxb5 {[%emt 0:00:07]} Rxa6 {[%emt 0:00:03]} 64. Rxe5 {[%emt 0:00:06]} Kg6 {[%emt 0:00:39]} 65. b5 {[%emt 0:00:11]} (65. Kd4 $142 Ra4 66. Kc5 Kf7 67. Rxh5 Ke6 68. Rg5 Ra8 69. b5 Rc8+ 70. Kb6) 65... Ra1 {[%emt 0:00:08]} 66. Re6+ {[%emt 0:00:18]} (66. Kd4 $142 Kf6 67. Rxh5) 66... Kg7 {[%emt 0:00:12]} 67. b6 {[%emt 0:00:07]} Rb1 {[%emt 0:00:06]} 68. Kd4 {[%emt 0:00:07]} Kf7 {[%emt 0:00:25]} 69. Rc6 {[%emt 0:00:07]} Rb4+ {[%emt 0:00:29]} 70. Kd5 $2 {[%emt 0:00:07]} (70. Kc5 {mates} Rxe4 71. b7 Re8 72. Rc8 Re5+ 73. Kc6 (73. Kd4 Rb5 74. b8=Q Rxb8 75. Rxb8 Kf6 76. Rb5 Ke6 77. Rxh5 Kf6) 73... Re6+ 74. Kd5 Re1 75. b8=Q (75. b8=B Rd1+ 76. Ke4 Rh1 $18)) 70... Rb5+ $2 {[%emt 0:00:09][%mdl 8192]} (70... Rxb6 $16 71. Rxb6 Ke7 72. Rb7+ Kd8 73. e5 Ke8 74. e6 Kf8 75. Rf7+ Kg8 76. Ke4 Kh8 77. e7 Kg8 78. e8=Q#) 71. Kd6 {[%emt 0:00:08]} Rb4 {[%emt 0:00:07]} 72. Kc7 {[%emt 0:00:40]} Rxe4 {[%emt 0:00:05]} 73. b7 {[%emt 0:00:06]} 1-0